[Event "Swedish Chess Championship 2019: Weekend 1"]
[Site "Stiga Sports Arena, Arenatorget 1, Eskilstuna, Sweden"]
[Date "2019.07.05"]
[Round "1.10"]
[White "Berglund, Nils-Erik"]
[Black "Thollin, Robert"]
[Result "0-1"]
[TimeControl "90 minutes + 30 seconds per move from move one"]
[WhiteFideId "1710494"]
[BlackFideId "1701630"]
[WhiteElo "1926"]
[BlackElo "1983"]

1. d4 {[%clk 01:30:55]} {[%emt 00:00:04]} e6 {[%clk 01:30:53]} {[%emt
00:00:07]} 2. c4 {[%clk 01:31:05]} {[%emt 00:00:20]} f5 {[%clk 01:31:14]}
{[%emt 00:00:09]} 3. Nf3 {[%clk 01:31:10]} {[%emt 00:00:26]} Nf6 {[%clk
01:31:35]} {[%emt 00:00:10]} 4. g3 {[%clk 01:31:33]} {[%emt 00:00:06]} d5
{[%clk 01:31:58]} {[%emt 00:00:06]} 5. Bg2 {[%clk 01:31:51]} {[%emt 00:00:12]}
c6 {[%clk 01:32:19]} {[%emt 00:00:09]} 6. O-O {[%clk 01:32:07]} {[%emt
00:00:15]} Bd6 {[%clk 01:32:40]} {[%emt 00:00:08]} 7. b3 {[%clk 01:32:01]}
{[%emt 00:00:37]} Qe7 {[%clk 01:33:02]} {[%emt 00:00:08]} 8. Bb2 {[%clk
01:32:11]} {[%emt 00:00:20]} a5 {[%clk 01:28:28]} {[%emt 00:05:04]} 9. Nbd2
{[%clk 01:28:09]} {[%emt 00:04:32]} O-O {[%clk 01:28:16]} {[%emt 00:00:42]} 10.
Ne5 {[%clk 01:22:03]} {[%emt 00:06:37]} b6 {[%clk 01:11:12]} {[%emt 00:17:34]}
11. Rc1 {[%clk 01:10:23]} {[%emt 00:12:10]} Bb7 {[%clk 01:09:59]} {[%emt
00:01:42]} 12. e3 {[%clk 00:58:58]} {[%emt 00:11:56]} Na6 {[%clk 00:57:01]}
{[%emt 00:13:28]} 13. Ndf3 {[%clk 00:52:51]} {[%emt 00:06:37]} Rac8 {[%clk
00:53:21]} {[%emt 00:04:09]} 14. Ne1 {[%clk 00:48:06]} {[%emt 00:05:15]} Nb4
{[%clk 00:44:59]} {[%emt 00:08:51]} 15. a3 {[%clk 00:48:10]} {[%emt 00:00:28]}
Na6 {[%clk 00:45:25]} {[%emt 00:00:03]} 16. a4 {[%clk 00:48:25]} {[%emt
00:00:16]} Nb4 {[%clk 00:45:27]} {[%emt 00:00:27]} 17. N1d3 {[%clk 00:48:30]}
{[%emt 00:00:25]} Nxd3 {[%clk 00:38:52]} {[%emt 00:07:04]} 18. Qxd3 {[%clk
00:48:49]} {[%emt 00:00:12]} Ne4 {[%clk 00:25:30]} {[%emt 00:13:52]} 19. Qe2
{[%clk 00:19:57]} {[%emt 00:29:22]} Rc7 {[%clk 00:23:25]} {[%emt 00:02:34]} 20.
cxd5 {[%clk 00:16:58]} {[%emt 00:03:31]} exd5 {[%clk 00:23:23]} {[%emt
00:00:31]} 21. f3 {[%clk 00:15:26]} {[%emt 00:02:02]} Nf6 {[%clk 00:23:23]}
{[%emt 00:00:29]} 22. Rc2 {[%clk 00:15:35]} {[%emt 00:00:22]} Nd7 {[%clk
00:22:34]} {[%emt 00:01:19]} 23. f4 {[%clk 00:15:51]} {[%emt 00:00:15]} Nf6
{[%clk 00:22:42]} {[%emt 00:00:21]} 24. Rfc1 {[%clk 00:16:06]} {[%emt
00:00:15]} Rfc8 {[%clk 00:22:45]} {[%emt 00:00:26]} 25. h3 {[%clk 00:14:17]}
{[%emt 00:02:19]} Ne4 {[%clk 00:22:34]} {[%emt 00:00:40]} 26. Bxe4 {[%clk
00:11:41]} {[%emt 00:03:07]} fxe4 {[%clk 00:21:44]} {[%emt 00:01:20]} 27. g4
{[%clk 00:10:26]} {[%emt 00:01:45]} Qh4 {[%clk 00:20:50]} {[%emt 00:01:22]} 28.
Kg2 {[%clk 00:09:17]} {[%emt 00:01:40]} Qe7 {[%clk 00:17:18]} {[%emt 00:04:02]}
29. g5 {[%clk 00:09:09]} {[%emt 00:00:37]} Bxe5 {[%clk 00:16:18]} {[%emt
00:01:30]} 30. dxe5 {[%clk 00:09:22]} {[%emt 00:00:18]} Rf8 {[%clk 00:16:34]}
{[%emt 00:00:13]} 31. Qg4 {[%clk 00:08:00]} {[%emt 00:01:52]} Bc8 {[%clk
00:16:04]} {[%emt 00:01:00]} 32. Qg3 {[%clk 00:08:12]} {[%emt 00:00:18]} c5
{[%clk 00:15:46]} {[%emt 00:00:48]} 33. h4 {[%clk 00:07:59]} {[%emt 00:00:43]}
Qe6 {[%clk 00:15:42]} {[%emt 00:00:34]} 34. Bc3 {[%clk 00:07:08]} {[%emt
00:01:22]} Rd8 {[%clk 00:13:49]} {[%emt 00:02:22]} 35. Bb2 {[%clk 00:06:19]}
{[%emt 00:01:20]} Rf7 {[%clk 00:13:01]} {[%emt 00:01:17]} 36. Kh2 {[%clk
00:05:33]} {[%emt 00:01:17]} Bb7 {[%clk 00:11:40]} {[%emt 00:01:51]} 37. Qh3
{[%clk 00:05:16]} {[%emt 00:00:47]} Rf5 {[%clk 00:11:46]} {[%emt 00:00:23]} 38.
Rd1 {[%clk 00:05:23]} {[%emt 00:00:24]} Qf7 {[%clk 00:11:08]} {[%emt 00:01:08]}
39. Rf2 {[%clk 00:05:17]} {[%emt 00:00:36]} Bc8 {[%clk 00:11:13]} {[%emt
00:00:25]} 40. Qg3 {[%clk 00:05:22]} {[%emt 00:00:25]} Qh5 {[%clk 00:09:52]}
{[%emt 00:01:50]} 41. Rdd2 {[%clk 00:05:21]} {[%emt 00:00:32]} Be6 {[%clk
00:09:53]} {[%emt 00:00:28]} 42. Rg2 {[%clk 00:05:13]} {[%emt 00:00:39]} Qe8
{[%clk 00:09:56]} {[%emt 00:00:26]} 43. Qe1 {[%clk 00:05:09]} {[%emt 00:00:34]}
Rd7 {[%clk 00:07:16]} {[%emt 00:03:11]} 44. Rgf2 {[%clk 00:04:48]} {[%emt
00:00:51]} Qh5 {[%clk 00:06:10]} {[%emt 00:01:36]} 45. Kg3 {[%clk 00:05:03]}
{[%emt 00:00:16]} Rf8 {[%clk 00:04:41]} {[%emt 00:01:58]} 46. Qe2 {[%clk
00:04:41]} {[%emt 00:00:52]} Qf7 {[%clk 00:04:44]} {[%emt 00:00:27]} 47. Qb5
{[%clk 00:04:34]} {[%emt 00:00:37]} Qf5 {[%clk 00:04:37]} {[%emt 00:00:37]} 48.
Rh2 {[%clk 00:04:45]} {[%emt 00:00:20]} Qg4+ {[%clk 00:04:52]} {[%emt
00:00:14]} 49. Kf2 {[%clk 00:04:33]} {[%emt 00:00:41]} Qf3+ {[%clk 00:05:09]}
{[%emt 00:00:13]} 50. Ke1 {[%clk 00:04:48]} {[%emt 00:00:16]} Qxe3+ {[%clk
00:04:59]} {[%emt 00:00:39]} 51. Rde2 {[%clk 00:04:57]} {[%emt 00:00:22]} Qg3+
{[%clk 00:04:43]} {[%emt 00:00:46]} 52. Kd1 {[%clk 00:05:16]} {[%emt 00:00:11]}
Rxf4 {[%clk 00:04:38]} {[%emt 00:00:34]} 53. Rhg2 {[%clk 00:04:57]} {[%emt
00:00:50]} Qh3 {[%clk 00:04:12]} {[%emt 00:00:56]} 54. Kc2 {[%emt 00:00:54]} d4
{[%clk 00:04:11]} {[%emt 00:00:30]} 0-1

[Event "Swedish Chess Championship 2019: Weekend 1"]
[Site "Stiga Sports Arena, Arenatorget 1, Eskilstuna, Sweden"]
[Date "2019.07.05"]
[Round "1.11"]
[White "Forsberg, Andre"]
[Black "Nyberg, Stefan"]
[Result "0-1"]
[TimeControl "90 minutes + 30 seconds per move from move one"]
[WhiteFideId "1724193"]
[BlackFideId "1737171"]
[WhiteElo "1982"]
[BlackElo "1921"]

1. e4 {[%clk 01:30:52]} {[%emt 00:00:06]} e5 {[%clk 01:30:45]} {[%emt
00:00:16]} 2. Nf3 {[%clk 01:31:15]} {[%emt 00:00:07]} Nc6 {[%clk 01:31:11]}
{[%emt 00:00:05]} 3. Bc4 {[%clk 01:31:39]} {[%emt 00:00:06]} Bc5 {[%clk
01:30:54]} {[%emt 00:00:47]} 4. c3 {[%clk 01:31:53]} {[%emt 00:00:16]} Nf6
{[%clk 01:30:35]} {[%emt 00:00:50]} 5. d3 {[%clk 01:32:06]} {[%emt 00:00:16]}
h6 {[%clk 01:30:49]} {[%emt 00:00:15]} 6. O-O {[%clk 01:31:59]} {[%emt
00:00:37]} O-O {[%clk 01:31:13]} {[%emt 00:00:06]} 7. Nbd2 {[%clk 01:32:01]}
{[%emt 00:00:28]} d6 {[%clk 01:30:42]} {[%emt 00:01:01]} 8. h3 {[%clk
01:31:46]} {[%emt 00:00:45]} a6 {[%clk 01:29:08]} {[%emt 00:02:05]} 9. Bb3
{[%clk 01:31:59]} {[%emt 00:00:17]} Be6 {[%clk 01:28:45]} {[%emt 00:00:53]} 10.
Re1 {[%clk 01:31:58]} {[%emt 00:00:31]} Bxb3 {[%clk 01:19:37]} {[%emt
00:10:47]} 11. Qxb3 {[%clk 01:28:48]} {[%emt 00:03:39]} Qd7 {[%clk 01:17:20]}
{[%emt 00:02:47]} 12. Nf1 {[%clk 01:28:27]} {[%emt 00:00:50]} Nh5 {[%clk
01:10:21]} {[%emt 00:07:30]} 13. Qd1 {[%clk 01:27:21]} {[%emt 00:01:36]} f5
{[%clk 00:58:19]} {[%emt 00:12:33]} 14. Nh4 {[%clk 01:03:52]} {[%emt 00:23:55]}
fxe4 {[%clk 00:51:21]} {[%emt 00:07:32]} 15. d4 {[%clk 00:58:53]} {[%emt
00:05:30]} Qf7 {[%clk 00:50:16]} {[%emt 00:01:35]} 16. dxc5 {[%clk 00:45:41]}
{[%emt 00:13:42]} Qxf2+ {[%clk 00:49:53]} {[%emt 00:00:53]} 17. Kh2 {[%clk
00:45:15]} {[%emt 00:00:55]} Qxh4 {[%clk 00:47:24]} {[%emt 00:02:59]} 18. Qd5+
{[%clk 00:43:44]} {[%emt 00:02:01]} Kh8 {[%clk 00:44:51]} {[%emt 00:03:03]} 19.
Rxe4 {[%clk 00:41:37]} {[%emt 00:02:37]} Nf6 {[%clk 00:38:03]} {[%emt
00:07:18]} 20. Rxh4 {[%clk 00:36:42]} {[%emt 00:05:24]} Nxd5 {[%clk 00:38:00]}
{[%emt 00:00:34]} 21. Ng3 {[%clk 00:34:48]} {[%emt 00:02:24]} Nf4 {[%clk
00:19:54]} {[%emt 00:18:36]} 22. cxd6 {[%clk 00:32:03]} {[%emt 00:03:15]} cxd6
{[%clk 00:18:33]} {[%emt 00:01:51]} 23. Ne4 {[%clk 00:30:24]} {[%emt 00:02:09]}
Nd3 {[%clk 00:14:04]} {[%emt 00:04:59]} 24. Bxh6 {[%clk 00:28:13]} {[%emt
00:02:41]} gxh6 {[%clk 00:13:18]} {[%emt 00:01:16]} 25. Rxh6+ {[%clk 00:28:35]}
{[%emt 00:00:08]} Kg7 {[%clk 00:13:25]} {[%emt 00:00:22]} 26. Rxd6 {[%clk
00:26:13]} {[%emt 00:02:52]} Rad8 {[%clk 00:11:53]} {[%emt 00:02:02]} 27. Rd1
{[%clk 00:23:10]} {[%emt 00:03:33]} Nxb2 {[%clk 00:05:25]} {[%emt 00:06:58]} 28.
Rb1 {[%clk 00:23:05]} {[%emt 00:00:36]} Rxd6 {[%clk 00:05:22]} {[%emt
00:00:33]} 29. Nxd6 {[%clk 00:23:28]} {[%emt 00:00:06]} Rf2 {[%clk 00:05:21]}
{[%emt 00:00:31]} 30. Kg1 {[%clk 00:20:21]} {[%emt 00:03:37]} Rd2 {[%clk
00:04:45]} {[%emt 00:01:06]} 31. Nxb7 {[%clk 00:20:15]} {[%emt 00:00:36]} e4
{[%clk 00:02:00]} {[%emt 00:03:14]} 32. Nc5 {[%clk 00:18:50]} {[%emt 00:01:55]}
e3 {[%clk 00:02:16]} {[%emt 00:00:15]} 33. Ne4 {[%clk 00:18:54]} {[%emt
00:00:26]} Rc2 {[%clk 00:01:55]} {[%emt 00:00:51]} 34. Re1 {[%clk 00:17:52]}
{[%emt 00:01:31]} Nc4 {[%clk 00:02:21]} {[%emt 00:00:05]} 35. g4 {[%clk
00:12:54]} {[%emt 00:05:28]} N6e5 {[%clk 00:02:30]} {[%emt 00:00:21]} 36. Kf1
{[%clk 00:13:01]} {[%emt 00:00:22]} Nf3 {[%clk 00:01:57]} {[%emt 00:01:04]} 37.
Re2 {[%clk 00:12:53]} {[%emt 00:00:38]} Nfd2+ {[%clk 00:00:40]} {[%emt
00:01:47]} 38. Kg2 {[%clk 00:12:49]} {[%emt 00:00:33]} Rxa2 {[%clk 00:00:50]}
{[%emt 00:00:20]} 39. h4 {[%clk 00:09:41]} {[%emt 00:03:38]} Rb2 {[%clk
00:00:56]} {[%emt 00:00:24]} 40. Nc5 {[%clk 00:09:05]} {[%emt 00:01:05]} a5
{[%clk 00:00:58]} {[%emt 00:00:30]} 41. g5 {[%clk 00:08:49]} {[%emt 00:00:46]}
Ra2 {[%clk 00:00:45]} {[%emt 00:00:44]} 42. h5 {[%clk 00:08:35]} {[%emt
00:00:43]} Rc2 {[%clk 00:00:35]} {[%emt 00:00:40]} 43. Ne6+ {[%clk 00:08:21]}
{[%emt 00:00:44]} Kf7 {[%clk 00:00:45]} {[%emt 00:00:20]} 44. Nd4 {[%clk
00:07:47]} {[%emt 00:01:03]} Rxc3 {[%clk 00:00:41]} {[%emt 00:00:33]} 45. g6+
{[%clk 00:07:58]} {[%emt 00:00:20]} Kg8 {[%clk 00:00:47]} {[%emt 00:00:24]} 46.
Nf5 {[%clk 00:07:13]} {[%emt 00:01:14]} Ne4 {[%clk 00:00:36]} {[%emt 00:00:41]}
47. h6 {[%clk 00:06:46]} {[%emt 00:00:57]} Nf6 {[%clk 00:00:37]} {[%emt
00:00:28]} 48. Ne7+ {[%clk 00:05:27]} {[%emt 00:01:49]} Kh8 {[%clk 00:00:35]}
{[%emt 00:00:32]} 49. Kg3 {[%clk 00:03:05]} {[%emt 00:02:52]} Ne5 {[%clk
00:00:35]} {[%emt 00:00:30]} 50. g7+ {[%clk 00:01:59]} {[%emt 00:01:36]} Kh7
{[%clk 00:00:57]} {[%emt 00:00:08]} 51. Nf5 {[%clk 00:01:07]} {[%emt 00:01:21]}
a4 {[%clk 00:00:56]} {[%emt 00:00:32]} 52. Kf4 {[%clk 00:01:13]} {[%emt
00:00:23]} Ng6+ {[%clk 00:00:58]} {[%emt 00:00:28]} 53. Kf3 {[%clk 00:00:35]}
{[%emt 00:01:08]} a3 {[%clk 00:00:51]} {[%emt 00:00:37]} 54. Rxe3 {[%clk
00:00:33]} {[%emt 00:00:32]} a2 {[%clk 00:00:46]} {[%emt 00:00:35]} 55. Rxc3
{[%clk 00:00:33]} {[%emt 00:00:30]} a1=Q {[%clk 00:01:05]} {[%emt 00:00:11]} 56.
g8=Q+ {[%clk 00:00:41]} {[%emt 00:00:21]} Nxg8 {[%clk 00:01:13]} {[%emt
00:00:22]} 57. Rc7+ {[%clk 00:00:57]} {[%emt 00:00:14]} N8e7 {[%clk 00:00:58]}
{[%emt 00:00:46]} 0-1

[Event "Swedish Chess Championship 2019: Weekend 1"]
[Site "Stiga Sports Arena, Arenatorget 1, Eskilstuna, Sweden"]
[Date "2019.07.05"]
[Round "1.12"]
[White "Johansson, Mathias"]
[Black "Mitra, Akash"]
[Result "1-0"]
[TimeControl "90 minutes + 30 seconds per move from move one"]
[WhiteFideId "1723324"]
[BlackFideId "1726714"]
[WhiteElo "1912"]
[BlackElo "1957"]

1. d4 {[%clk 01:30:56]} {[%emt 00:00:03]} f5 {[%clk 01:30:53]} {[%emt
00:00:07]} 2. Bg5 {[%clk 01:31:18]} {[%emt 00:00:09]} g6 {[%clk 01:30:46]}
{[%emt 00:00:36]} 3. Nd2 {[%clk 01:29:52]} {[%emt 00:01:56]} h6 {[%clk
01:29:55]} {[%emt 00:01:20]} 4. Bh4 {[%clk 01:30:09]} {[%emt 00:00:14]} d5
{[%clk 01:26:51]} {[%emt 00:03:34]} 5. e3 {[%clk 01:29:10]} {[%emt 00:01:30]}
Nf6 {[%clk 01:25:41]} {[%emt 00:01:39]} 6. Ngf3 {[%clk 01:17:58]} {[%emt
00:11:42]} Nbd7 {[%clk 01:20:44]} {[%emt 00:05:27]} 7. c4 {[%clk 01:13:42]}
{[%emt 00:04:46]} c6 {[%clk 01:17:20]} {[%emt 00:03:53]} 8. cxd5 {[%clk
01:10:26]} {[%emt 00:03:46]} cxd5 {[%clk 01:16:08]} {[%emt 00:01:43]} 9. Qa4
{[%clk 01:02:00]} {[%emt 00:08:56]} Kf7 {[%clk 01:09:33]} {[%emt 00:07:04]} 10.
Qb3 {[%clk 00:53:51]} {[%emt 00:08:40]} Qb6 {[%clk 01:04:35]} {[%emt 00:05:27]}
11. Rc1 {[%clk 00:48:13]} {[%emt 00:06:09]} Qxb3 {[%clk 01:04:07]} {[%emt
00:00:59]} 12. Nxb3 {[%clk 00:48:13]} {[%emt 00:00:30]} Ne4 {[%clk 01:01:23]}
{[%emt 00:03:14]} 13. Rc7 {[%clk 00:47:08]} {[%emt 00:01:35]} g5 {[%clk
00:57:05]} {[%emt 00:04:48]} 14. Bg3 {[%clk 00:47:30]} {[%emt 00:00:07]} Nxg3
{[%clk 00:56:29]} {[%emt 00:01:07]} 15. hxg3 {[%clk 00:47:53]} {[%emt
00:00:07]} g4 {[%clk 00:56:17]} {[%emt 00:00:41]} 16. Bb5 {[%clk 00:44:57]}
{[%emt 00:03:26]} gxf3 {[%clk 00:56:10]} {[%emt 00:00:37]} 17. Bxd7 {[%clk
00:45:18]} {[%emt 00:00:09]} fxg2 {[%clk 00:55:02]} {[%emt 00:01:37]} 18. Rg1
{[%clk 00:44:28]} {[%emt 00:01:19]} Bg7 {[%clk 00:53:12]} {[%emt 00:02:20]} 19.
Rxg2 {[%clk 00:41:23]} {[%emt 00:03:36]} Rb8 {[%clk 00:49:19]} {[%emt
00:04:23]} 20. f3 {[%clk 00:37:07]} {[%emt 00:04:47]} Bxd7 {[%clk 00:42:52]}
{[%emt 00:06:57]} 21. Rxd7 {[%clk 00:37:29]} {[%emt 00:00:07]} Rhd8 {[%clk
00:42:30]} {[%emt 00:00:52]} 22. Rc7 {[%clk 00:36:36]} {[%emt 00:01:23]} Rd6
{[%clk 00:38:39]} {[%emt 00:04:20]} 23. Rgc2 {[%clk 00:35:01]} {[%emt
00:02:07]} Ra6 {[%clk 00:32:40]} {[%emt 00:06:28]} 24. a3 {[%clk 00:35:26]}
{[%emt 00:00:06]} Rb6 {[%clk 00:30:33]} {[%emt 00:02:36]} 25. Nc5 {[%clk
00:33:54]} {[%emt 00:02:02]} Rg6 {[%clk 00:23:56]} {[%emt 00:06:52]} 26. Kf2
{[%clk 00:34:22]} {[%emt 00:00:18]} Bf6 {[%clk 00:22:21]} {[%emt 00:02:05]} 27.
Nxb7 {[%clk 00:32:45]} {[%emt 00:02:07]} Rbg8 {[%clk 00:19:31]} {[%emt
00:03:20]} 28. Rc8 {[%clk 00:24:08]} {[%emt 00:09:06]} Rxc8 {[%clk 00:12:46]}
{[%emt 00:07:16]} 29. Rxc8 {[%clk 00:24:31]} {[%emt 00:00:07]} e5 {[%clk
00:11:49]} {[%emt 00:01:26]} 30. Rc7+ {[%clk 00:21:38]} {[%emt 00:03:22]} Ke6
{[%clk 00:10:55]} {[%emt 00:01:23]} 31. Nc5+ {[%clk 00:22:02]} {[%emt
00:00:09]} Kd6 {[%clk 00:11:11]} {[%emt 00:00:13]} 32. Rxa7 {[%clk 00:15:23]}
{[%emt 00:07:09]} exd4 {[%clk 00:10:57]} {[%emt 00:00:44]} 33. Nd3 {[%clk
00:15:27]} {[%emt 00:00:26]} dxe3+ {[%clk 00:11:15]} {[%emt 00:00:13]} 34. Kxe3
{[%clk 00:15:52]} {[%emt 00:00:05]} Rxg3 {[%clk 00:09:47]} {[%emt 00:01:58]} 35.
Kf4 {[%clk 00:15:08]} {[%emt 00:01:13]} Rg2 {[%clk 00:08:54]} {[%emt 00:01:23]}
36. Kxf5 {[%clk 00:13:03]} {[%emt 00:02:34]} Bxb2 {[%clk 00:09:07]} {[%emt
00:00:18]} 37. Ra6+ {[%clk 00:13:15]} {[%emt 00:00:18]} Ke7 {[%clk 00:08:23]}
{[%emt 00:01:15]} 38. Nxb2 {[%clk 00:12:04]} {[%emt 00:01:40]} Rxb2 {[%clk
00:08:44]} {[%emt 00:00:09]} 39. Rxh6 {[%clk 00:11:18]} {[%emt 00:01:16]} Rb3
{[%clk 00:09:05]} {[%emt 00:00:09]} 40. f4 {[%clk 00:09:02]} {[%emt 00:02:46]}
Rxa3 {[%clk 00:08:57]} {[%emt 00:00:38]} 41. Ke5 {[%clk 00:09:14]} {[%emt
00:00:18]} Ra5 {[%clk 00:08:20]} {[%emt 00:01:04]} 42. Rh7+ {[%clk 00:09:42]}
{[%emt 00:00:05]} Kf8 {[%clk 00:08:39]} {[%emt 00:00:09]} 43. Rd7 {[%clk
00:06:43]} {[%emt 00:03:28]} Ke8 {[%clk 00:08:09]} {[%emt 00:01:02]} 44. Rb7
{[%clk 00:07:09]} {[%emt 00:00:04]} Kf8 {[%clk 00:08:21]} {[%emt 00:00:17]} 45.
f5 {[%clk 00:07:02]} {[%emt 00:00:39]} d4+ {[%clk 00:08:28]} {[%emt 00:00:23]}
46. Kf6 {[%clk 00:04:15]} {[%emt 00:03:17]} Ra6+ {[%clk 00:08:38]} {[%emt
00:00:20]} 47. Ke5 {[%clk 00:04:31]} {[%emt 00:00:13]} Ra5+ {[%clk 00:09:04]}
{[%emt 00:00:04]} 48. Kf6 {[%clk 00:04:52]} {[%emt 00:00:08]} Ra6+ {[%clk
00:09:26]} {[%emt 00:00:09]} 49. Kg5 {[%clk 00:04:19]} {[%emt 00:01:02]} Rd6
{[%clk 00:07:39]} {[%emt 00:02:16]} 50. f6 {[%clk 00:03:40]} {[%emt 00:01:09]}
Rd8 {[%clk 00:01:24]} {[%emt 00:06:46]} 51. Kg6 {[%clk 00:03:53]} {[%emt
00:00:17]} d3 {[%clk 00:00:39]} {[%emt 00:01:16]} 52. Rh7 {[%clk 00:04:01]}
{[%emt 00:00:21]} Ke8 {[%clk 00:00:41]} {[%emt 00:00:28]} 53. Rh8+ {[%clk
00:04:01]} {[%emt 00:00:30]} Kd7 {[%clk 00:01:06]} {[%emt 00:00:05]} 54. Rxd8+
{[%clk 00:04:26]} {[%emt 00:00:04]} Kxd8 {[%clk 00:01:33]} {[%emt 00:00:04]} 55.
f7 {[%clk 00:04:50]} {[%emt 00:00:06]} d2 {[%clk 00:01:51]} {[%emt 00:00:12]}
56. f8=Q+ {[%clk 00:05:13]} {[%emt 00:00:06]} Kd7 {[%clk 00:02:19]} {[%emt
00:00:03]} 57. Qf1 {[%clk 00:05:37]} {[%emt 00:00:05]} 1-0

[Event "Swedish Chess Championship 2019: Weekend 1"]
[Site "Stiga Sports Arena, Arenatorget 1, Eskilstuna, Sweden"]
[Date "2019.07.06"]
[Round "2.1"]
[White "Westerberg, Jonathan"]
[Black "Namini, Armin"]
[Result "1-0"]
[TimeControl "90 minutes + 30 seconds per move from move one"]
[WhiteTitle "IM"]
[WhiteFideId "1701754"]
[BlackFideId "1706322"]
[WhiteElo "2546"]
[BlackElo "2241"]

1. d4 {[%clk 01:24:13]} {[%emt 00:02:32]} Nf6 {[%clk 01:30:30]} {[%emt
00:00:30]} 2. Nf3 {[%clk 01:24:30]} {[%emt 00:00:13]} g6 {[%clk 01:29:50]}
{[%emt 00:01:11]} 3. Nbd2 {[%clk 01:24:54]} {[%emt 00:00:05]} c5 {[%clk
01:27:05]} {[%emt 00:03:16]} 4. dxc5 {[%clk 01:25:17]} {[%emt 00:00:07]} Qa5
{[%clk 01:25:20]} {[%emt 00:02:15]} 5. a3 {[%clk 01:25:33]} {[%emt 00:00:14]}
Qxc5 {[%clk 01:25:43]} {[%emt 00:00:07]} 6. b4 {[%clk 01:25:50]} {[%emt
00:00:12]} Qb6 {[%clk 01:20:49]} {[%emt 00:05:26]} 7. Bb2 {[%clk 01:25:29]}
{[%emt 00:00:49]} Bg7 {[%clk 01:21:12]} {[%emt 00:00:08]} 8. e3 {[%clk
01:24:49]} {[%emt 00:01:09]} O-O {[%clk 01:20:51]} {[%emt 00:00:53]} 9. Be2
{[%clk 01:22:47]} {[%emt 00:02:31]} d6 {[%clk 01:19:06]} {[%emt 00:02:16]} 10.
O-O {[%clk 01:22:17]} {[%emt 00:01:00]} Bd7 {[%clk 01:14:48]} {[%emt 00:04:49]}
11. c4 {[%clk 01:20:55]} {[%emt 00:01:52]} Rc8 {[%clk 01:14:01]} {[%emt
00:01:17]} 12. Qb3 {[%clk 01:18:58]} {[%emt 00:02:26]} Qd8 {[%clk 01:11:50]}
{[%emt 00:02:42]} 13. Bc3 {[%clk 01:16:18]} {[%emt 00:03:09]} h6 {[%clk
01:03:43]} {[%emt 00:08:38]} 14. Qb2 {[%clk 01:08:03]} {[%emt 00:08:46]} Qf8
{[%clk 00:59:01]} {[%emt 00:05:11]} 15. Rac1 {[%clk 01:03:44]} {[%emt
00:04:50]} Be8 {[%clk 00:53:19]} {[%emt 00:06:11]} 16. Rfe1 {[%clk 00:58:32]}
{[%emt 00:05:41]} Nbd7 {[%clk 00:49:18]} {[%emt 00:04:31]} 17. e4 {[%clk
00:56:24]} {[%emt 00:02:38]} Nb6 {[%clk 00:44:23]} {[%emt 00:05:25]} 18. e5
{[%clk 00:53:33]} {[%emt 00:03:21]} dxe5 {[%clk 00:43:43]} {[%emt 00:01:10]} 19.
Bxe5 {[%clk 00:53:39]} {[%emt 00:00:24]} Na4 {[%clk 00:41:18]} {[%emt
00:02:55]} 20. Qb3 {[%clk 00:53:03]} {[%emt 00:01:05]} h5 {[%clk 00:40:00]}
{[%emt 00:01:49]} 21. c5 {[%clk 00:51:11]} {[%emt 00:02:22]} Bh6 {[%clk
00:35:09]} {[%emt 00:05:21]} 22. Rcd1 {[%clk 00:48:59]} {[%emt 00:02:42]} a5
{[%clk 00:26:03]} {[%emt 00:09:36]} 23. Bxf6 {[%clk 00:48:12]} {[%emt
00:01:17]} exf6 {[%clk 00:25:08]} {[%emt 00:01:25]} 24. Ne4 {[%clk 00:48:40]}
{[%emt 00:00:01]} Bc6 {[%clk 00:23:44]} {[%emt 00:01:54]} 25. Nxf6+ {[%clk
00:48:26]} {[%emt 00:00:44]} Kh8 {[%clk 00:24:04]} {[%emt 00:00:10]} 26. Nd7
{[%clk 00:43:13]} {[%emt 00:05:43]} Qg7 {[%clk 00:22:05]} {[%emt 00:02:29]} 27.
Nde5 {[%clk 00:42:01]} {[%emt 00:01:42]} Be8 {[%clk 00:19:56]} {[%emt
00:02:39]} 28. c6 {[%clk 00:39:24]} {[%emt 00:03:07]} f6 {[%clk 00:18:37]}
{[%emt 00:01:49]} 29. Rd7 {[%clk 00:37:16]} {[%emt 00:02:38]} Bxd7 {[%clk
00:16:40]} {[%emt 00:02:27]} 30. Nf7+ {[%clk 00:37:35]} {[%emt 00:00:11]} Kh7
{[%clk 00:16:59]} {[%emt 00:00:12]} 31. cxd7 {[%clk 00:37:36]} {[%emt
00:00:29]} Rc3 {[%clk 00:15:53]} {[%emt 00:01:36]} 32. Qe6 {[%clk 00:37:43]}
{[%emt 00:00:22]} axb4 {[%clk 00:11:44]} {[%emt 00:04:40]} 33. axb4 {[%clk
00:37:52]} {[%emt 00:00:21]} Qf8 {[%clk 00:08:11]} {[%emt 00:04:02]} 34. d8=Q
{[%clk 00:33:40]} {[%emt 00:04:42]} Rxd8 {[%clk 00:08:21]} {[%emt 00:00:20]} 35.
Nxd8 {[%clk 00:34:05]} {[%emt 00:00:05]} Qxd8 {[%clk 00:07:59]} {[%emt
00:00:52]} 36. Qf7+ {[%clk 00:34:30]} {[%emt 00:00:04]} Bg7 {[%clk 00:07:22]}
{[%emt 00:01:07]} 37. Nh4 {[%clk 00:34:53]} {[%emt 00:00:07]} Qd2 {[%clk
00:04:45]} {[%emt 00:03:08]} 38. Qxg6+ {[%clk 00:35:18]} {[%emt 00:00:05]} Kh8
{[%clk 00:05:07]} {[%emt 00:00:07]} 39. Qxh5+ {[%clk 00:35:42]} {[%emt
00:00:06]} Bh6 {[%clk 00:05:30]} {[%emt 00:00:08]} 40. Qe8+ {[%clk 00:35:56]}
{[%emt 00:00:16]} Kh7 {[%clk 00:05:38]} {[%emt 00:00:23]} 41. Bf1 {[%clk
00:33:57]} {[%emt 00:02:28]} 1-0